fUSD/lending_fUSD_20250311
["ID","MTS","AMOUNT","RATE_DAILY","PERIOD"]
[355935805,1741720253414,-500.0,9.267e-05,2]
[355935806,1741720253433,-2716.87,9.267e-05,2]
[355935807,1741720253446,-1268.14552692,9.267e-05,2]
[355935808,1741720253492,-706.01265439,9.267e-05,2]
[355935809,1741720253511,-272.07181869,9.267e-05,2]
[355935810,1741720253526,-21.79383616,9.267e-05,2]
[355935811,1741720253544,-2495.83616384,9.267e-05,2]
[355935812,1741720253561,-3313.31,9.267e-05,2]
[355935813,1741720253575,-500.0,9.267e-05,2]
[355935814,1741720253590,-1063.62,9.267e-05,2]
[355935815,1741720253605,-500.0,9.267e-05,2]
[355935816,1741720253620,-635.16,9.267e-05,2]
[355935817,1741720253637,-1243.64,9.267e-05,2]
[355935818,1741720253651,-539.33,9.267e-05,2]
[355935819,1741720253666,-2382.5,9.267e-05,2]
[355935820,1741720253680,-1988.96280522,9.267e-05,2]
[355935821,1741720253699,-3444.88719478,9.267e-05,2]
[355935822,1741720253714,-849.69,9.267e-05,2]
[355935823,1741720253728,-1584.5,9.267e-05,2]
[355935824,1741720253742,-925.65,9.267e-05,2]
[355935825,1741720253758,-1311.01,9.267e-05,2]
[355935826,1741720253772,-1027.16,9.267e-05,2]
[355935827,1741720253786,-890.3,9.267e-05,2]
[355935828,1741720253801,-3042.07,9.267e-05,2]
[355935829,1741720253815,-3853.94,9.267e-05,2]
[355935830,1741720253831,-1685.42,9.267e-05,2]
[355935831,1741720253845,-521.22,9.267e-05,2]
[355935832,1741720253859,-1044.8,9.267e-05,2]
[355935833,1741720253876,-693.42,9.267e-05,2]
[355935834,1741720253892,-1345.42,9.267e-05,2]
[355935835,1741720253907,-1061.07,9.267e-05,2]
[355935836,1741720253921,-1684.28,9.267e-05,2]
[355935837,1741720253936,-903.23,9.267e-05,2]
[355935838,1741720253950,-500.0,9.268e-05,2]
[355935839,1741720253964,-500.0,9.268e-05,2]
[355935840,1741720253978,-500.0,9.268e-05,2]
[355935841,1741720253993,-893.32,9.268e-05,2]
[355935842,1741720254008,-500.0,9.268e-05,2]
[355935843,1741720254022,-500.0,9.268e-05,2]
[355935844,1741720254036,-500.0,9.268e-05,2]
[355935845,1741720254051,-1092.99,9.268e-05,2]
[355935846,1741720254065,-500.0,9.268e-05,2]
[355935847,1741720254079,-500.0,9.268e-05,2]
[355935848,1741720254093,-500.0,9.268e-05,2]
[355935849,1741720254107,-726.82,9.268e-05,2]
[355935850,1741720254122,-521.87,9.268e-05,2]
[355935851,1741720254137,-500.0,9.268e-05,2]
[355935852,1741720254151,-1947.23,9.268e-05,2]
[355935853,1741720254170,-572.64474373,9.268e-05,2]
[355935854,1741720254185,-500.0,9.268e-05,2]
[355935855,1741720254200,-500.0,9.268e-05,2]
[355935856,1741720254215,-740.9,9.268e-05,2]
[355935857,1741720254230,-500.0,9.268e-05,2]
[355935858,1741720254247,-500.0,9.268e-05,2]
[355935859,1741720254263,-545.19,9.268e-05,2]
[355935860,1741720254278,-554.98919241,9.268e-05,2]
[355935861,1741720254293,-500.0,9.268e-05,2]
[355935862,1741720254309,-532.75,9.268e-05,2]
[355935863,1741720254325,-500.0,9.268e-05,2]
[355935864,1741720254340,-1304.16,9.268e-05,2]
[355935865,1741720254354,-500.0,9.268e-05,2]
[355935866,1741720254369,-500.0,9.268e-05,2]
[355935867,1741720254385,-1584.67,9.268e-05,2]
[355935868,1741720254400,-500.0,9.268e-05,2]
[355935869,1741720254415,-1559.34,9.268e-05,2]
[355935870,1741720254430,-612.52,9.268e-05,2]
[355935871,1741720254444,-500.0,9.268e-05,2]
[355935872,1741720254459,-500.0,9.268e-05,2]
[355935873,1741720254473,-500.0,9.268e-05,2]
[355935874,1741720254488,-529.20679811,9.268e-05,2]
[355935875,1741720254504,-500.0,9.268e-05,2]
[355935876,1741720254519,-569.35149608,9.268e-05,2]
[355935877,1741720254534,-2040.15,9.268e-05,2]
[355935878,1741720254549,-569.95119522,9.268e-05,2]
[355935879,1741720254564,-500.0,9.268e-05,2]
[355935880,1741720254578,-500.0,9.268e-05,2]
[355935881,1741720254593,-500.0,9.268e-05,2]
[355935882,1741720254603,-1130.49,9.268e-05,2]
[355935883,1741720254612,-543.85699546,9.268e-05,2]
[355935884,1741720254621,-680.66,9.268e-05,2]
[355935885,1741720254632,-500.0,9.268e-05,2]
[355935886,1741720254641,-500.0,9.268e-05,2]
[355935887,1741720254650,-552.42162938,9.268e-05,2]
[355935888,1741720254659,-500.0,9.268e-05,2]
[355935889,1741720254669,-500.0,9.268e-05,2]
[355935890,1741720254679,-500.0,9.268e-05,2]
[355935891,1741720254688,-500.0,9.268e-05,2]
[355935892,1741720254697,-710.61,9.268e-05,2]
[355935893,1741720254707,-1284.94,9.268e-05,2]
[355935894,1741720254716,-500.0,9.268e-05,2]
[355935895,1741720254725,-744.96,9.268e-05,2]
[355935896,1741720254735,-500.0,9.268e-05,2]
[355935897,1741720254744,-1642.41,9.268e-05,2]
[355935898,1741720254754,-500.0,9.268e-05,2]
[355935899,1741720254764,-500.0,9.268e-05,2]
[355935900,1741720254773,-500.0,9.268e-05,2]
[355935901,1741720254782,-734.41,9.268e-05,2]
[355935902,1741720254792,-500.0,9.268e-05,2]
[355935903,1741720254801,-504.92000297,9.268e-05,2]
[355935904,1741720254810,-500.0,9.268e-05,2]
[355935905,1741720254819,-618.98,9.268e-05,2]
[355935906,1741720254829,-607.13,9.268e-05,2]
[355935907,1741720255251,-1741.87,9.268e-05,2]
[355935908,1741720255274,-500.0,9.268e-05,2]
[355935909,1741720255308,-601.25,9.268e-05,2]
[355935910,1741720255327,-500.0,9.268e-05,2]
[355935911,1741720255337,-1632.88,9.268e-05,2]
[355935912,1741720255347,-721.2,9.268e-05,2]
[355935913,1741720255356,-500.0,9.268e-05,2]
[355935914,1741720255366,-500.0,9.268e-05,2]
[355935915,1741720255375,-500.0,9.268e-05,2]
[355935916,1741720255385,-1633.61,9.268e-05,2]
[355935917,1741720255394,-500.0,9.268e-05,2]
[355935918,1741720255404,-500.0,9.268e-05,2]
[355935919,1741720255413,-1010.39,9.268e-05,2]
[355935920,1741720255423,-500.0,9.268e-05,2]
[355935921,1741720255432,-500.0,9.268e-05,2]
[355935922,1741720255441,-500.0,9.268e-05,2]
[355935923,1741720255451,-500.0,9.268e-05,2]
[355935924,1741720255460,-1380.19,9.268e-05,2]
[355935925,1741720255470,-821.46,9.268e-05,2]
[355935926,1741720255480,-500.0,9.268e-05,2]
[355935927,1741720255490,-660.63,9.268e-05,2]
[355935928,1741720255500,-1782.25,9.268e-05,2]
[355935929,1741720255510,-500.0,9.268e-05,2]
[355935930,1741720255519,-500.0,9.268e-05,2]
[355935931,1741720255529,-500.0,9.268e-05,2]
[355935932,1741720255539,-500.0,9.268e-05,2]
[355935933,1741720255549,-500.0,9.268e-05,2]
[355935934,1741720255558,-500.0,9.268e-05,2]
[355935935,1741720255568,-547.6634417,9.268e-05,2]
[355935936,1741720255578,-551.95335577,9.268e-05,2]
[355935937,1741720255588,-500.0,9.268e-05,2]
[355935938,1741720255597,-1401.72,9.268e-05,2]
[355935939,1741720255607,-500.0,9.268e-05,2]
[355935940,1741720255617,-500.0,9.268e-05,2]
[355935941,1741720255628,-500.0,9.268e-05,2]
[355935942,1741720255638,-1164.92,9.268e-05,2]
[355935943,1741720255649,-500.0,9.268e-05,2]
[355935944,1741720255659,-1655.11,9.268e-05,2]
[355935945,1741720255669,-500.0,9.268e-05,2]
[355935946,1741720255679,-540.3471664,9.268e-05,2]
[355935947,1741720255689,-389.52707687,9.268e-05,2]
[355935948,1741720255698,-500.0,9.268e-05,2]
[355935949,1741720255708,-500.0,9.268e-05,2]
[355935950,1741720255717,-500.0,9.268e-05,2]
[355935951,1741720255727,-500.0,9.268e-05,2]
[355935952,1741720255737,-500.0,9.268e-05,2]
[355935953,1741720255746,-500.0,9.268e-05,2]
[355935954,1741720255756,-1057.54,9.268e-05,2]
[355935955,1741720255765,-500.0,9.268e-05,2]
[355935956,1741720255775,-500.0,9.268e-05,2]
[355935957,1741720255784,-562.84931894,9.268e-05,2]
[355935958,1741720255793,-500.0,9.268e-05,2]
[355935959,1741720255803,-625.52,9.268e-05,2]
[355935960,1741720255812,-628.81,9.268e-05,2]
[355935961,1741720255822,-500.0,9.268e-05,2]
[355935962,1741720255831,-1101.74,9.268e-05,2]
[355935963,1741720255841,-500.0,9.268e-05,2]
[355935964,1741720255850,-1742.71,9.268e-05,2]
[355935965,1741720255860,-539.24,9.268e-05,2]
[355935966,1741720255869,-547.53701142,9.268e-05,2]
[355935967,1741720255880,-1001.62,9.268e-05,2]
[355935968,1741720255890,-500.0,9.268e-05,2]
[355935969,1741720255899,-1614.88,9.268e-05,2]
[355935970,1741720255908,-500.0,9.268e-05,2]
[355935971,1741720255917,-504.3,9.268e-05,2]
[355935972,1741720255926,-611.45,9.268e-05,2]
[355935973,1741720255935,-539.91,9.268e-05,2]
[355935974,1741720255945,-500.0,9.268e-05,2]
[355935975,1741720255954,-1341.6,9.268e-05,2]
[355935976,1741720255963,-500.0,9.268e-05,2]
[355935977,1741720255973,-500.0,9.268e-05,2]
[355935978,1741720255983,-500.0,9.268e-05,2]
[355935979,1741720255993,-500.0,9.268e-05,2]
[355935980,1741720256002,-500.0,9.268e-05,2]
[355935981,1741720256012,-507.6,9.268e-05,2]
[355935982,1741720256022,-932.93,9.268e-05,2]
[355935983,1741720256031,-500.0,9.268e-05,2]
[355935984,1741720256040,-500.0,9.268e-05,2]
[355935985,1741720256050,-500.0,9.268e-05,2]
[355935986,1741720256059,-500.29600059,9.268e-05,2]
[355935987,1741720256070,-500.0,9.268e-05,2]
[355935988,1741720256079,-500.0,9.268e-05,2]
[355935989,1741720256088,-500.0,9.268e-05,2]
[355935990,1741720256097,-500.0,9.268e-05,2]
[355935991,1741720256108,-865.39,9.268e-05,2]
[355935992,1741720256117,-500.0,9.268e-05,2]
[355935993,1741720256127,-1049.17,9.268e-05,2]
[355935994,1741720256137,-692.68,9.268e-05,2]
[355935995,1741720256147,-701.61,9.268e-05,2]
[355935996,1741720256157,-500.0,9.268e-05,2]
[355935997,1741720256173,-500.0,9.268e-05,2]
[355935998,1741720256184,-500.0,9.268e-05,2]
[355935999,1741720256194,-500.0,9.268e-05,2]
[355936000,1741720256204,-630.26443926,9.268e-05,2]
[355936001,1741720256213,-4757.02,9.268e-05,2]
[355936002,1741720256223,-1789.66,9.268e-05,2]
[355936003,1741720256232,-500.0,9.268e-05,2]
[355936004,1741720256243,-940.9,9.268e-05,2]
[355936005,1741720256253,-527.25,9.268e-05,2]
[355936006,1741720256263,-685.31,9.268e-05,2]
[355936007,1741720256273,-500.0,9.268e-05,2]
[355936008,1741720256283,-910.24,9.268e-05,2]
[355936009,1741720256293,-500.0,9.268e-05,2]
[355936010,1741720256302,-671.89,9.268e-05,2]
[355936011,1741720256311,-500.0,9.268e-05,2]
[355936012,1741720256321,-500.0,9.268e-05,2]
[355936013,1741720256331,-1892.97,9.268e-05,2]
[355936014,1741720256342,-510.8,9.268e-05,2]
[355936015,1741720256352,-811.6,9.268e-05,2]
[355936016,1741720256362,-500.0,9.268e-05,2]
[355936017,1741720256371,-1903.7,9.268e-05,2]
[355936018,1741720256382,-500.0,9.268e-05,2]
[355936019,1741720256392,-657.18,9.268e-05,2]
[355936020,1741720256402,-500.0,9.268e-05,2]
[355936021,1741720256411,-1792.19,9.268e-05,2]
[355936022,1741720256420,-748.25,9.268e-05,2]
[355936023,1741720256430,-500.0,9.268e-05,2]
[355936024,1741720256444,-500.0,9.268e-05,2]
[355936025,1741720256455,-500.0,9.268e-05,2]
[355936026,1741720256465,-1840.42,9.268e-05,2]
[355936027,1741720256475,-500.0,9.268e-05,2]
[355936028,1741720256485,-500.0,9.268e-05,2]
[355936029,1741720256495,-508.57,9.268e-05,2]
[355936030,1741720256505,-500.0,9.268e-05,2]
[355936031,1741720256515,-500.0,9.268e-05,2]
[355936032,1741720256525,-1428.17,9.268e-05,2]
[355936033,1741720256535,-525.53,9.268e-05,2]
[355936034,1741720256545,-500.0,9.268e-05,2]
[355936035,1741720256556,-500.0,9.268e-05,2]
[355936036,1741720256566,-552.72,9.268e-05,2]
[355936037,1741720256576,-1179.22,9.268e-05,2]
[355936038,1741720256586,-500.0,9.268e-05,2]
[355936039,1741720256596,-500.0,9.268e-05,2]
[355936040,1741720256606,-968.23,9.268e-05,2]
[355936041,1741720256615,-222.15025898,9.268e-05,2]
[355936042,1741720256628,-920.37,9.268e-05,2]
[355936043,1741720256638,-980.05,9.268e-05,2]
[355936044,1741720256648,-500.0,9.268e-05,2]
[355936045,1741720256658,-1413.6,9.268e-05,2]
[355936046,1741720256669,-780.22,9.268e-05,2]
[355936047,1741720256679,-500.0,9.268e-05,2]
[355936048,1741720256689,-500.0,9.268e-05,2]
[355936049,1741720256698,-500.0,9.268e-05,2]
[355936050,1741720256708,-171.68397028,9.268e-05,2]
[355936051,1741720256717,-1424.88,9.268e-05,2]
[355936052,1741720256727,-536.62596594,9.268e-05,2]
[355936053,1741720256737,-1707.93,9.268e-05,2]
[355936054,1741720256748,-781.92,9.268e-05,2]
[355936055,1741720256758,-500.0,9.268e-05,2]
[355936056,1741720256768,-1195.62,9.268e-05,2]
[355936057,1741720256778,-1265.25,9.268e-05,2]
[355936058,1741720256788,-500.0,9.268e-05,2]
[355936059,1741720256798,-573.85,9.268e-05,2]
[355936060,1741720256807,-578.23317211,9.268e-05,2]
[355936061,1741720256817,-1010.02,9.268e-05,2]
[355936062,1741720256826,-503.1,9.268e-05,2]
[355936063,1741720256836,-500.0,9.268e-05,2]
[355936064,1741720256846,-889.85,9.268e-05,2]
[355936065,1741720256855,-1041.24,9.268e-05,2]
[355936066,1741720256865,-500.0,9.268e-05,2]
[355936067,1741720256876,-500.0,9.268e-05,2]
[355936068,1741720256886,-500.0,9.268e-05,2]
[355936069,1741720256898,-760.14,9.268e-05,2]
[355936070,1741720256908,-1331.75,9.268e-05,2]
[355936071,1741720256918,-500.0,9.268e-05,2]
[355936072,1741720256928,-500.0,9.268e-05,2]
[355936073,1741720256937,-498.31955937,9.268e-05,2]
[355936074,1741720256947,-500.0,9.268e-05,2]
[355936075,1741720256957,-1247.89,9.268e-05,2]
[355936076,1741720256967,-500.0,9.268e-05,2]
[355936077,1741720256976,-768.27,9.268e-05,2]
[355936078,1741720256986,-500.0,9.268e-05,2]
[355936079,1741720256996,-1343.43,9.268e-05,2]
[355936080,1741720257006,-998.25,9.268e-05,2]
[355936081,1741720257016,-500.0,9.268e-05,2]
[355936082,1741720257025,-1036.84,9.268e-05,2]
[355936083,1741720257035,-556.72,9.268e-05,2]
[355936084,1741720257044,-500.0,9.268e-05,2]
[355936085,1741720257054,-1031.8,9.268e-05,2]
[355936086,1741720257064,-1671.75,9.268e-05,2]
[355936087,1741720257073,-500.0,9.268e-05,2]
[355936088,1741720257083,-500.0,9.268e-05,2]
[355936089,1741720257092,-500.0,9.268e-05,2]
[355936090,1741720257102,-500.0,9.268e-05,2]
[355936091,1741720257111,-755.31,9.268e-05,2]
[355936092,1741720257121,-500.0,9.268e-05,2]
[355936093,1741720257132,-500.0,9.268e-05,2]
[355936094,1741720257142,-500.0,9.268e-05,2]
[355936095,1741720257151,-1517.61,9.268e-05,2]
[355936096,1741720257166,-500.0,9.268e-05,2]
[355936097,1741720257176,-616.61,9.268e-05,2]
[355936098,1741720257185,-1360.14,9.268e-05,2]
[355936099,1741720257195,-500.0,9.268e-05,2]
[355936100,1741720257207,-1578.0,9.268e-05,2]
[355936101,1741720257217,-663.55,9.268e-05,2]
[355936102,1741720257227,-554.32097832,9.268e-05,2]
[355936103,1741720257238,-968.83,9.268e-05,2]
[355936104,1741720257247,-1000.0,9.268e-05,2]
[355936105,1741720257257,-500.0,9.268e-05,2]
[355936106,1741720257268,-500.0,9.268e-05,2]
[355936107,1741720257277,-1293.98,9.268e-05,2]
[355936108,1741720257286,-500.0,9.268e-05,2]
[355936109,1741720257296,-500.0,9.268e-05,2]
[355936110,1741720257306,-500.0,9.268e-05,2]
[355936111,1741720257315,-274.25485108,9.268e-05,2]
[355936112,1741720257325,-626.93,9.268e-05,2]
[355936113,1741720257335,-500.0,9.268e-05,2]
[355936114,1741720257345,-500.0,9.268e-05,2]
[355936115,1741720257355,-512.42551274,9.268e-05,2]
[355936116,1741720257364,-500.0,9.268e-05,2]
[355936117,1741720257374,-643.12,9.268e-05,2]
[355936118,1741720257385,-2032.79,9.268e-05,2]
[355936119,1741720257395,-1085.59,9.268e-05,2]
[355936120,1741720257405,-552.0,9.268e-05,2]
[355936121,1741720257416,-1588.97,9.268e-05,2]
[355936122,1741720257426,-1214.6,9.268e-05,2]
[355936123,1741720257436,-1124.91,9.268e-05,2]
[355936124,1741720257445,-500.0,9.268e-05,2]
[355936125,1741720257455,-500.0,9.268e-05,2]
[355936126,1741720257465,-500.0,9.268e-05,2]
[355936127,1741720257476,-500.0,9.268e-05,2]
[355936128,1741720257485,-502.79,9.268e-05,2]
[355936129,1741720257495,-720.21,9.268e-05,2]
[355936130,1741720257505,-500.0,9.268e-05,2]
[355936131,1741720257515,-1733.02,9.268e-05,2]
[355936132,1741720257524,-984.39,9.268e-05,2]
[355936133,1741720257534,-620.03072432,9.268e-05,2]
[355936134,1741720257543,-1383.52,9.268e-05,2]
[355936135,1741720257553,-1722.58,9.268e-05,2]
[355936136,1741720257563,-500.0,9.268e-05,2]
[355936137,1741720257572,-574.89,9.268e-05,2]
[355936138,1741720257582,-500.0,9.268e-05,2]
[355936139,1741720257591,-500.0,9.268e-05,2]
[355936140,1741720257600,-527.5,9.268e-05,2]
[355936141,1741720257610,-500.0,9.268e-05,2]
[355936142,1741720257619,-500.0,9.268e-05,2]
[355936143,1741720257630,-500.0,9.268e-05,2]
[355936144,1741720257640,-500.0,9.268e-05,2]
[355936145,1741720257649,-500.0,9.268e-05,2]
[355936146,1741720257658,-500.0,9.268e-05,2]
[355936147,1741720257668,-500.0,9.268e-05,2]
[355936148,1741720257677,-500.0,9.268e-05,2]
[355936149,1741720257686,-500.0,9.268e-05,2]
[355936150,1741720257696,-646.15,9.268e-05,2]
[355936151,1741720257706,-500.0,9.268e-05,2]
[355936152,1741720257715,-500.0,9.268e-05,2]
[355936153,1741720257725,-500.0,9.268e-05,2]
[355936154,1741720257734,-500.0,9.268e-05,2]
[355936155,1741720257743,-500.0,9.268e-05,2]
[355936156,1741720257753,-1605.16,9.268e-05,2]
[355936157,1741720257763,-500.0,9.268e-05,2]
[355936158,1741720257773,-500.0,9.268e-05,2]
[355936159,1741720257783,-500.0,9.268e-05,2]
[355936160,1741720257792,-508.91,9.268e-05,2]
[355936162,1741720257802,-500.0,9.268e-05,2]
[355936163,1741720257811,-1032.96,9.268e-05,2]
[355936164,1741720257822,-699.84,9.268e-05,2]
[355936165,1741720257831,-172.62829634,9.268e-05,2]
[355936166,1741720257841,-1905.14,9.268e-05,2]
[355936167,1741720257850,-581.39,9.268e-05,2]
[355936168,1741720257859,-500.0,9.268e-05,2]
[355936169,1741720257869,-500.0,9.268e-05,2]
[355936170,1741720257879,-500.0,9.268e-05,2]
[355936171,1741720257889,-1433.33,9.268e-05,2]
[355936172,1741720257898,-1717.27,9.268e-05,2]
[355936173,1741720257908,-1132.91,9.268e-05,2]
[355936174,1741720257917,-567.25511633,9.268e-05,2]
[355936175,1741720257927,-500.0,9.268e-05,2]
[355936176,1741720257936,-583.01519536,9.268e-05,2]
[355936177,1741720257946,-776.77,9.268e-05,2]
[355936178,1741720257956,-1537.81,9.268e-05,2]
[355936179,1741720257970,-1721.11,9.268e-05,2]
[355936180,1741720257980,-500.0,9.268e-05,2]
[355936181,1741720257990,-573.16,9.268e-05,2]
[355936182,1741720258001,-952.32,9.268e-05,2]
[355936183,1741720258012,-500.0,9.268e-05,2]
[355936184,1741720258021,-500.0,9.268e-05,2]
[355936185,1741720258031,-500.0,9.268e-05,2]
[355936186,1741720258041,-500.0,9.268e-05,2]
[355936187,1741720258051,-802.23,9.268e-05,2]
[355936188,1741720258061,-500.0,9.268e-05,2]
[355936189,1741720258071,-500.0,9.268e-05,2]
[355936190,1741720258081,-670.98,9.268e-05,2]
[355936191,1741720258090,-500.0,9.268e-05,2]
[355936192,1741720258100,-1445.88,9.268e-05,2]
[355936193,1741720258109,-600.68,9.268e-05,2]
[355936194,1741720258118,-500.0,9.268e-05,2]
[355936195,1741720258128,-500.0,9.268e-05,2]
[355936196,1741720258138,-2856.49,9.268e-05,2]
[355936197,1741720258149,-500.0,9.268e-05,2]
[355936198,1741720258159,-1512.45,9.268e-05,2]
[355936199,1741720258173,-1367.77,9.268e-05,2]
[355936200,1741720258183,-1426.13,9.268e-05,2]
[355936201,1741720258194,-1008.75,9.268e-05,2]
[355936202,1741720258204,-1026.02,9.268e-05,2]
[355936203,1741720258215,-500.0,9.268e-05,2]
[355936204,1741720258404,-712.3,9.268e-05,2]
[355936205,1741720258435,-648.13,9.268e-05,2]
[355936206,1741720258446,-500.0,9.268e-05,2]
[355936207,1741720258456,-562.37,9.268e-05,2]
[355936208,1741720258466,-500.0,9.268e-05,2]
[355936209,1741720258477,-1201.5,9.268e-05,2]
[355936210,1741720258487,-1704.59,9.268e-05,2]
[355936211,1741720258497,-500.0,9.268e-05,2]
[355936212,1741720258507,-595.56148976,9.268e-05,2]
[355936213,1741720258516,-571.88,9.268e-05,2]
[355936214,1741720258526,-870.42,9.268e-05,2]
[355936215,1741720258536,-596.27,9.268e-05,2]
[355936216,1741720258545,-1711.73,9.268e-05,2]
[355936217,1741720258554,-1352.65,9.268e-05,2]
[355936218,1741720258564,-500.0,9.268e-05,2]
[355936219,1741720258573,-1870.93,9.268e-05,2]
[355936220,1741720258582,-500.0,9.268e-05,2]
[355936221,1741720258592,-1500.0,9.268e-05,2]
[355936222,1741720258602,-570.94,9.268e-05,2]
[355936223,1741720258611,-1598.78,9.268e-05,2]
[355936224,1741720258621,-7340.56,9.268e-05,2]
[355936225,1741720258631,-769.88,9.268e-05,2]
[355936226,1741720258641,-1458.62,9.268e-05,2]
[355936227,1741720258651,-500.0,9.268e-05,2]
[355936228,1741720258660,-500.0,9.268e-05,2]
[355936229,1741720258670,-1280.52,9.268e-05,2]
[355936230,1741720258679,-462.25016042,9.268e-05,2]
[355936231,1741720258689,-1121.8,9.268e-05,2]
[355936232,1741720258699,-500.0,9.268e-05,2]
[355936233,1741720258708,-507.08,9.268e-05,2]
[355936234,1741720258718,-514.42661329,9.268e-05,2]
[355936235,1741720258727,-500.0,9.268e-05,2]
[355936236,1741720258737,-1442.39,9.268e-05,2]
[355936237,1741720258746,-1964.11,9.268e-05,2]
[355936238,1741720258756,-500.0,9.268e-05,2]
[355936239,1741720258766,-1104.38,9.268e-05,2]
[355936240,1741720258775,-500.0,9.268e-05,2]
[355936241,1741720258785,-500.0,9.268e-05,2]
[355936242,1741720258794,-500.0,9.268e-05,2]
[355936243,1741720258804,-500.0,9.268e-05,2]
[355936244,1741720258814,-505.24,9.268e-05,2]
[355936245,1741720258823,-500.0,9.268e-05,2]
[355936246,1741720258833,-2710.13,9.268e-05,2]
[355936247,1741720258842,-500.0,9.268e-05,2]
[355936248,1741720258852,-500.0,9.268e-05,2]
[355936249,1741720258862,-500.0,9.268e-05,2]
[355936250,1741720258871,-500.0,9.268e-05,2]
[355936251,1741720258881,-500.0,9.268e-05,2]
[355936252,1741720258891,-500.0,9.268e-05,2]
[355936253,1741720258900,-1530.03,9.268e-05,2]
[355936254,1741720258910,-500.0,9.268e-05,2]
[355936255,1741720258920,-500.0,9.268e-05,2]
[355936256,1741720258930,-1405.97,9.268e-05,2]
[355936257,1741720258939,-500.0,9.268e-05,2]
[355936258,1741720258949,-743.19,9.268e-05,2]
[355936259,1741720258959,-625.03,9.268e-05,2]
[355936260,1741720258969,-418.04405474,9.268e-05,2]
[355936261,1741720258979,-500.0,9.268e-05,2]
[355936262,1741720258989,-577.79,9.268e-05,2]
[355936263,1741720258999,-1049.76,9.268e-05,2]
[355936264,1741720259010,-500.0,9.268e-05,2]
[355936265,1741720259019,-640.51,9.268e-05,2]
[355936266,1741720259029,-500.0,9.268e-05,2]
[355936267,1741720259038,-552.54,9.268e-05,2]
[355936268,1741720259048,-500.0,9.268e-05,2]
[355936269,1741720259058,-2123.98,9.268e-05,2]
[355936270,1741720259067,-5022.51,9.268e-05,2]
[355936271,1741720259078,-556.5,9.268e-05,2]
[355936272,1741720259087,-500.0,9.268e-05,2]
[355936273,1741720259096,-500.0,9.268e-05,2]
[355936274,1741720259106,-1956.71,9.268e-05,2]
[355936275,1741720259116,-500.0,9.268e-05,2]
[355936276,1741720259125,-576.5,9.268e-05,2]
[355936277,1741720259135,-1071.63,9.268e-05,2]
[355936278,1741720259146,-964.84,9.268e-05,2]
[355936279,1741720259155,-1287.59,9.268e-05,2]
[355936280,1741720259166,-512.53,9.268e-05,2]
[355936281,1741720259177,-213.03854238,9.268e-05,2]
[355936282,1741720259186,-546.12649588,9.268e-05,2]
[355936283,1741720259196,-2218.01,9.268e-05,2]
[355936284,1741720259207,-2206.33,9.268e-05,2]
[355936285,1741720259218,-1496.84,9.268e-05,2]
[355936286,1741720259228,-500.0,9.268e-05,2]
[355936287,1741720259237,-1548.16,9.268e-05,2]
[355936288,1741720259248,-500.0,9.268e-05,2]
[355936289,1741720259258,-500.0,9.268e-05,2]
[355936290,1741720259268,-522.89,9.268e-05,2]
[355936291,1741720259278,-500.0,9.268e-05,2]
[355936292,1741720259287,-500.0,9.268e-05,2]
[355936293,1741720259297,-899.3,9.268e-05,2]
[355936294,1741720259306,-1268.22,9.268e-05,2]
[355936295,1741720259316,-619.73,9.268e-05,2]
[355936296,1741720259326,-500.0,9.268e-05,2]
[355936297,1741720259336,-500.0,9.268e-05,2]
[355936298,1741720259345,-500.0,9.268e-05,2]
[355936299,1741720259355,-500.0,9.268e-05,2]
[355936300,1741720259366,-2977.37,9.268e-05,2]
[355936301,1741720259376,-500.0,9.268e-05,2]
[355936302,1741720259387,-3870.03,9.268e-05,2]
[355936303,1741720259396,-1217.53,9.268e-05,2]
[355936304,1741720259405,-979.69,9.268e-05,2]
[355936305,1741720259415,-938.79,9.268e-05,2]